Cogmind - Beta 16 *** ADVENTURER MODE // 2025.11.23 @ 23:47:55 Player: BD Result: Destroyed by Y-45 Defender with Heavy Assault Rifle Performance ------------- Evolutions (1) 500 Regions Visited (4) 800 Robots Destroyed (28) 140 Value Destroyed (694) 694 Prototype IDs (1) 20 Alien Tech Used (0) 0 Bonus (0) 0 TOTAL SCORE: 2154 Bonus ------- None Cogmind --------- Core Integrity 0/400 Matter 300/300 Energy 280/280 System Corruption 0% Temperature Cool (9) Movement Rolling (90) Location -9/Storage Parts ------- > --- POWER (1) -------- Heavy Ion Engine > --- PROPULSION (3) --- Wheel Compact Wheel > --- UTILITY (3) ------ Small Storage Unit Terrain Scan Processor Transport Network Coupler > --- WEAPON (2) ------- Small Laser Small Laser > --- INVENTORY (8) ---- Terrain Scan Processor Transport Network Coupler ECM Suite Hardened Light Armor Plating Drone Bay (2/2) Drone Bay (2/2) Grenade Launcher Rocket Launcher Peak State ------------ > --- POWER ------------ Heavy Ion Engine > --- PROPULSION ------- Wheel Compact Wheel > --- UTILITY ---------- Small Storage Unit Terrain Scan Processor Transport Network Coupler > --- WEAPON ----------- Particle Gun Heavy Assault Rifle > --- INVENTORY -------- Terrain Scan Processor Terrain Scan Processor Transport Network Coupler Transport Network Coupler ECM Suite Hardened Light Armor Plating Hardened Light Armor Plating [Rating: 14] Favorites ----------- Power Light Ion Engine Engine Light Ion Engine Propulsion Flight Unit Leg Aluminum Leg Wheel Wheel Flight Unit Flight Unit Utility Small Storage Unit Storage Small Storage Unit Processor Transport Network Coupler Weapon Small Laser Energy Gun Small Laser Ballistic Gun Assault Rifle Build | -11 -10 -10 -9 -9 ------- Run | Yrd Mat Min Mat Sto Slots Evolved 2 | . . . 2 . Power . | . . . . . Propulsion 1 | . . . 1 . Utility 1 | . . . 1 . Weapon . | . . . . . Parts Attached 29 | 6 . 3 12 8 Power 4 | 1 . 1 1 1 Engine 4 | 1 . 1 1 1 Core . | . . . . . Reactor . | . . . . . Propulsion 12 | 2 . 2 5 3 Treads . | . . . . . Leg 2 | 2 . . . . Wheel 2 | . . . . 2 Hover . | . . . . . Flight 8 | . . 2 5 1 Utility 3 | 1 . . 2 . Device . | . . . . . Storage 1 | 1 . . . . Processor 2 | . . . 2 . Hackware . | . . . . . Protection . | . . . . . Artifact . | . . . . . Weapon 10 | 2 . . 4 4 Energy Gun 6 | 1 . . 2 3 Energy Cannon . | . . . . . Ballistic Gun 4 | 1 . . 2 1 Ballistic Cannon . | . . . . . Launcher . | . . . . . Special Weapon . | . . . . . Impact Weapon . | . . . . . Slashing Weapon . | . . . . . Piercing Weapon . | . . . . . Special Melee Weapon . | . . . . . Unidentified Prototypes 1 | . . . . 1 Parts Lost 11 | . . . 4 7 Power 2 | . . . 1 1 Propulsion 7 | . . . 2 5 Utility . | . . . . . Weapon 2 | . . . 1 1 Highest Loss Streak 4 | . . . 2 4 To Critical Strikes . | . . . . . Average Backups 6 | 2 4 6 7 7 Power . | . 1 1 1 . Propulsion 1 | . 2 4 3 . Utility 3 | . . . 2 6 Weapon . | . 1 1 . . Tool/Special . | . . . . . Unused Backups 13 | . . 2 2 9 Power 1 | . . . 1 . Propulsion 2 | . . 2 . . Utility 8 | . . . 1 7 Weapon 2 | . . . . 2 Tool/Special . | . . . . . Average Slot Usage (%) 83 | . 85 85 81 84 Engine 11 | . 14 14 10 9 Leg 5 | . 28 17 . . Wheel 5 | . . . . 11 Flight 14 | . . 10 31 10 Storage 11 | . 14 14 11 11 Processor 13 | . . . 10 22 Energy Gun 12 | . 14 14 8 14 Ballistic Gun 8 | . 14 14 8 5 Peak Build Rating 14 | 6 6 6 12 14 Average Rating 9 | 4 6 5 8 11 On Entrance 6 | . 6 6 6 12 Avg Prop Armor Cover (%) . | . . . . . Naked Turns . | . . . . . Heaviest Build 19 | 11 11 11 12 19 Greatest Support 26 | 20 20 20 15 26 Greatest Overweight (x) 6 | . . 1 1 6 Average Overweight (x) . | . . . . . Largest Inventory Capacity 8 | 8 8 8 8 8 Average Capacity 7 | 6 8 8 8 8 Most Carried 8 | 4 4 8 8 8 Average Carried 6 | 2 4 6 7 7 Final Capacity 8 | 8 8 8 8 8 Final Carried 8 | 4 4 7 6 8 Class Distribution -------------------- 60% | Mutant 29% | Scavenger-Mutant 8% | Sprinter Dominant Class ---------------- Mutant | -10/Materials Mutant | -10/Mines Mutant | -9/Materials Scavenger-Mutant | -9/Storage Resources | -11 -10 -10 -9 -9 ----------- Run | Yrd Mat Min Mat Sto Matter Collected 643 | 260 . 60 145 178 Remotely . | . . . . . Salvage Created 973 | . . 114 234 625 Parts 57 | . . 13 16 28 Haulers Intercepted . | . . . . . Recyclers Shooed 2 | . . . . 2 Parts Field Recycled . | . . . . . Retrieved Matter . | . . . . . Parts Self-Destructed . | . . . . . Prevented . | . . . . . Parts Restored . | . . . . . Kills | -11 -10 -10 -9 -9 ------- Run | Yrd Mat Min Mat Sto Combat Hostiles Destroyed 24 | . . 6 7 11 Guns 23 | . . 6 7 10 Classes Destroyed 7 | . . 2 2 3 Worker 2 | . . 1 . 1 Builder 1 | . . . . 1 Recycler 1 | . . . . 1 Swarmer 9 | . . 6 3 . Grunt 8 | . . . 1 7 Brawler 1 | . . . . 1 Sentry 6 | . . . 3 3 Best Kill Streak 6 | . . 4 3 6 Combat Bots Only 3 | . . 3 3 2 Max Kills in Single Turn 2 | . . 2 1 1 Gunslinging 1 | . . 1 . . Exploded . | . . . . . Melee . | . . . . . Uniques/NPCs Destroyed . | . . . . . Combat | -11 -10 -10 -9 -9 -------- Run | Yrd Mat Min Mat Sto Hostile Shots Fired 240 | . 76 12 38 114 Missed 70 | . 31 4 6 29 Hits 170 | . 45 8 32 85 Projectile 170 | . 45 8 32 85 Critical Strikes 3 | . 1 . 2 . Damage Taken 1513 | . 285 45 308 875 Core 484 | . 58 19 61 346 Absorbed by Shields . | . . . . . Ignored by Resistances 467 | . 95 16 93 263 Regen/Repaired (Parts) 9 | . . . . 9 Core Remaining (%) 84 | 100 . 69 . . Volleys Fired 99 | . . 10 27 62 Largest 2 | . . 2 2 2 Hottest 90 | . . 60 90 88 Shots Fired 174 | . . 17 53 104 Gun 174 | . . 17 53 104 Cannon . | . . . . . Launcher . | . . . . . Special . | . . . . . Kinetic 98 | . . 10 39 49 Thermal 76 | . . 7 14 55 Explosive . | . . . . . Electromagnetic . | . . . . . Robot Hit Streak 20 | . . 11 20 19 Robot Miss Streak 3 | . . 1 3 3 Penetration Max . | . . . . . Secondary Targets 3 | . . 1 1 1 Max Gunslinging Chain 1 | . . 1 1 1 Shots Hit Robots 143 | . . 14 44 85 Core Hits 52 | . . 7 13 32 Critical Kills . | . . . . . Critical Parts Destroyed . | . . . . . Critical Strikes 1 | . . . . 1 Burn 1 | . . . . 1 Melee Attacks . | . . . . . Impact . | . . . . . Slashing . | . . . . . Piercing . | . . . . . Sneak Attacks . | . . . . . Combat Hostiles . | . . . . . Follow-up Attacks . | . . . . . Damage Inflicted 1626 | . . 153 410 1063 Guns 1618 | . . 153 410 1055 Cannons . | . . . . . Explosions . | . . . . . Melee . | . . . . . Ramming 8 | . . . . 8 Kinetic 836 | . . 90 284 462 Thermal 782 | . . 63 126 593 Explosive . | . . . . . Electromagnetic . | . . . . . Impact . | . . . . . Slashing . | . . . . . Piercing . | . . . . . Highest Corruption . | . . . . . Average Corruption . | . . . . . Corruption Purged . | . . . . . Corruption Blocked . | . . . . . Overload Shots . | . . . . . Overflow Damage . | . . . . . Projectiles . | . . . . . Explosions . | . . . . . Melee . | . . . . . Knockbacks . | . . . . . Impact . | . . . . . Kinetic . | . . . . . Secondary . | . . . . . Self-Inflicted Damage 4 | . . . . 4 Shots . | . . . . . Rammed 2 | . . . . 2 Targets Rammed 2 | . . . . 2 Kicked . | . . . . . Crushed . | . . . . . Highest Temperature 291 | . . . 145 291 Average Temperature 117 | . . . 35 148 Received Heat Transfer 681 | . 42 . 150 489 Effects 3 | . . . . 3 Energy Bleed 1 | . . . . 1 Interference 2 | . . . . 2 Siege Activations . | . . . . . Martial Activations . | . . . . . Shielding Activations . | . . . . . Robots Disrupted . | . . . . . Combat Hostiles . | . . . . . Robots Corrupted . | . . . . . Combat Hostiles . | . . . . . Parts Fried . | . . . . . Impact Corruptions . | . . . . . Robots Melted 1 | . . . . 1 Combat Hostiles 1 | . . . . 1 Parts Melted 6 | . . . . 6 Heat Transferred 1985 | . . 150 323 1512 Parts Sabotaged . | . . . . . Parts Stolen . | . . . . . Parts Stripped . | . . . . . Power Chain Reactions . | . . . . . Alert | -11 -10 -10 -9 -9 ------- Run | Yrd Mat Min Mat Sto Maximum Alert Level . | . . . . . Low Security (%) 100 | 100 100 100 100 100 Level 1 . | . . . . . Level 2 . | . . . . . Level 3 . | . . . . . Level 4 . | . . . . . Level 5 . | . . . . . High Security . | . . . . . Max Security . | . . . . . Peak Influence 105 | . 4 105 80 96 Initial 25 | . . . 14 25 Average 40 | . . 64 39 46 Influence Increases 677 | . 4 145 210 318 Destroy 0b10 Robot/C 480 | . . 120 140 220 Destroy 0b10 Robot/NC 20 | . . 5 . 15 Destroy Leader 120 | . . 20 40 60 Successful Hack 11 | . 4 . . 7 Destroy Structure 1 | . . . . 1 Partial Spotted 30 | . . . 30 . Lose Combat Pursuer 15 | . . . . 15 Influence Decreases 677 | . 4 100 185 388 Entered New Map 76 | . . . 31 45 Time Decay 491 | . 4 100 114 273 Lost Part 110 | . . . 40 70 Squads Dispatched 2 | . 1 . . 1 Investigation 1 | . 1 . . . Extermination . | . . . . . Reinforcement 1 | . . . . 1 Assault . | . . . . . Garrison . | . . . . . Intercept . | . . . . . Searches Triggered . | . . . . . Construction Impeded . | . . . . . Haulers Reinforced . | . . . . . Active Scanning Responses . | . . . . . Cargo Convoy Interrupts . | . . . . . Stealth | -11 -10 -10 -9 -9 --------- Run | Yrd Mat Min Mat Sto Distress Signals 4 | . 2 . . 2 Communications Jammed . | . . . . . Distress Signals . | . . . . . Times Spotted 40 | . 7 4 13 16 Peak Tracking Total 6 | . 6 3 3 5 Tactical Retreats 1 | . . . . 1 Traps | -11 -10 -10 -9 -9 ------- Run | Yrd Mat Min Mat Sto Traps Triggered . | . . . . . Indirectly . | . . . . . Trap Hack Attempts . | . . . . . Triggered . | . . . . . Disarmed . | . . . . . Reprogrammed . | . . . . . Reused . | . . . . . Traps Extracted . | . . . . . Installed . | . . . . . Triggered . | . . . . . Machines | -11 -10 -10 -9 -9 ---------- Run | Yrd Mat Min Mat Sto Machines Disabled . | . . . . . Max in Single Turn . | . . . . . Machines Repaired . | . . . . . Machines Dismantled . | . . . . . Machines Sabotaged . | . . . . . Overloaded Fab Kills . | . . . . . Hacking | -11 -10 -10 -9 -9 --------- Run | Yrd Mat Min Mat Sto Machines Accessed 12 | . 1 . 6 5 Terminals 9 | . 1 . 4 4 Fabricators . | . . . . . Repair Stations 1 | . . . . 1 Recycling Units 1 | . . . 1 . Scanalyzers 1 | . . . 1 . Garrison Access . | . . . . . Total Hacks 21 | . 2 . 8 11 Successful 15 | . 2 . 7 6 Failed 6 | . . . 1 5 Catastrophic . | . . . . . Database Lockouts . | . . . . . Manual . | . . . . . Terminals 15 | . 2 . 4 9 Fabricators . | . . . . . Repair Stations 2 | . . . . 2 Recycling Units 1 | . . . 1 . Scanalyzers 3 | . . . 3 . Garrison Access . | . . . . . Terminal Hacks 9 | . 2 . 3 4 Record 1 | . . . 1 . Open Door 1 | . . . . 1 Locate Traps 2 | . 1 . 1 . Surveillance Status 1 | . . . . 1 Transport Status 1 | . 1 . . . Extermination Status 1 | . . . . 1 Reinforcement Status 1 | . . . 1 . Assault Status 1 | . . . . 1 Fabricator Hacks . | . . . . . Repair Station Hacks 2 | . . . . 2 Scan Component 1 | . . . . 1 Repair 1 | . . . . 1 Recycling Unit Hacks 1 | . . . 1 . Report Inventory 1 | . . . 1 . Scanalyzer 3 | . . . 3 . Insert Component 1 | . . . 1 . Analyze 1 | . . . 1 . Retrieve Study 1 | . . . 1 . Garrison Access Hacks . | . . . . . Unauthorized Hacks . | . . . . . Terminals . | . . . . . Fabricators . | . . . . . Repair Stations . | . . . . . Recycling Units . | . . . . . Scanalyzers . | . . . . . Garrison Access . | . . . . . Data Cores Recovered . | . . . . . Used . | . . . . . Hacking Detections 3 | . . . 1 2 Full Trace Events . | . . . . . Feedback Events . | . . . . . Feedback Blocked . | . . . . . Robot Schematics Acquired . | . . . . . Robots Built . | . . . . . Authchips . | . . . . . Time . | . . . . . Total Robot Build Rating . | . . . . . Part Schematics Acquired 1 | . . . 1 . Parts Built . | . . . . . Authchips . | . . . . . Time . | . . . . . Total Part Build Rating . | . . . . . Part Studies Acquired 1 | . . . 1 . Parts Repaired 1 | . . . . 1 Time 26 | . . . . 26 Parts Recycled . | . . . . . Recycled Matter . | . . . . . Retrieved Matter . | . . . . . Retrieved Components . | . . . . . Parts Scanalyzed 1 | . . . 1 . Part Schematics Acquired 1 | . . . 1 . Parts Damaged . | . . . . . Bothacking | -11 -10 -10 -9 -9 ------------ Run | Yrd Mat Min Mat Sto Used RIF Installer . | . . . . . Robots Hacked . | . . . . . Non-combat . | . . . . . Combat . | . . . . . Robot Hacks Applied . | . . . . . Relay Couplers Released . | . . . . . Fabnet Peak Effective % . | . . . . . Robots Rewired . | . . . . . Allies Hacked . | . . . . . Hacks Repelled . | . . . . . Allies | -11 -10 -10 -9 -9 -------- Run | Yrd Mat Min Mat Sto Total Allies . | . . . . . Largest Group . | . . . . . Highest-Rated Group . | . . . . . Highest-Rated Ally . | . . . . . Total Orders . | . . . . . Ally Attacks . | . . . . . Total Damage . | . . . . . Kills . | . . . . . Allies Corrupted . | . . . . . Allies Melted . | . . . . . Intel | -11 -10 -10 -9 -9 ------- Run | Yrd Mat Min Mat Sto Active Infowar (turns) 738 | . . . 157 581 T.N.C. 738 | . . . 157 581 Robot Analysis Total . | . . . . . Derelict Logs Recovered . | . . . . . Drone Launches . | . . . . . Drone Recoveries . | . . . . . Exploration | -11 -10 -10 -9 -9 ------------- Run | Yrd Mat Min Mat Sto Turns Passed 1257 | 115 98 211 252 581 Spaces Moved 1186 | 95 82 144 427 438 Core 24 | 17 . . . 7 Treads . | . . . . . Legs 238 | 78 82 78 . . Wheels 282 | . . . . 282 Hover . | . . . . . Flight 642 | . . 66 427 149 Fastest Speed 32 | 50 120 117 32 32 Average Speed 74 | 107 120 118 36 82 Slowest Speed 350 | 120 120 120 117 350 Overloaded Moves . | . . . . . Propulsion Burnouts . | . . . . . Robots Hopped 6 | . . . 5 1 Potential Cave-ins . | . . . . . Cave-ins Triggered . | . . . . . Exploration Rate (%) 23 | 5 24 22 28 37 Regions Visited 4 Branch Regions 2 Pre-discovered Areas . | . . . . . Known Exits Taken . | . . . . . Unknown Exits Taken 4 | 1 1 1 1 . Scrap Searched . | . . . . . Spaces Dug . | . . . . . Terrain Destroyed . | . . . . . Melee . | . . . . . Projectile . | . . . . . AOE . | . . . . . Terrain Rammed . | . . . . . Walls Destroyed . | . . . . . Machines Disabled . | . . . . . Actions | -11 -10 -10 -9 -9 --------- Run | Yrd Mat Min Mat Sto Total 1383 | 105 81 169 472 556 Wait 30 | . . . . 30 Move 1170 | 94 81 143 416 436 Hop 6 | . . . 5 1 Pick Up 26 | 5 . 8 6 7 Fast Attach 18 | 5 . . 5 8 Attach 11 | 1 . 2 6 2 Detach 2 | . . . . 2 Swap 2 | . . 1 1 . Drop 17 | . . 5 6 6 Fire 99 | . . 10 27 62 Melee . | . . . . . Ram 2 | . . . . 2 Kick . | . . . . . Crush . | . . . . . Escape Stasis . | . . . . . Rewire . | . . . . . Trap . | . . . . . Miscellaneous . | . . . . . Route ------- -11/Scrapyard -10/Materials -10/Mines -9/Materials -9/Storage History --------- Turn | Location | Event 14 | -11/Scrapyard | Discovered new exit (range 16) 116 | -11/Scrapyard | Entered Materials 117 | -10/Materials | Met a group of wandering Federalists 198 | -10/Materials | Discovered new exit (range 13) 214 | -10/Materials | Entered Mines 283 | -10/Mines | Discovered new exit (range 15) 307 | -10/Mines | Build established: Mutant 335 | -10/Mines | Met a Derelict bent on vengeance 425 | -10/Mines | Entered Materials 425 | -9/Materials | Evolved 2 slots: Propulsion x1, Utility x1 676 | -9/Materials | Discovered new exit (range 5) 677 | -9/Materials | Entered Storage 715 | -9/Storage | Repaired Flight Unit+ 789 | -9/Storage | Core integrity fell below 50% 819 | -9/Storage | Lost 4 parts (1p2n1w) 904 | -9/Storage | Core integrity fell below 20% 1251 | -9/Storage | Build established: Scavenger-Mutant 1258 | -9/Storage | Destroyed by Y-45 Defender with Heavy Assault Rifle Last Messages --------------- Downloaded coordinate data. 01093_ R-06 Scavenger collects Imp. Ion Engine. 01096_ R-06 Scavenger collects Lgt. Armor Plating. 01098_ M-13 Machinist repairs R-06 Scavenger. 01100_ R-06 Scavenger collects Hvy. Assault Rifle. 01111_ Acquired Rocket Launcher. 01116_ Dropped Hrd. Light Armor Plating. 01117_ Acquired Grenade Launcher. 01124_ Connecting with Door Terminal... 01126_ Slammed into R-06 Scavenger. 01144_ K-01 Serf collects debris. 01208_ K-01 Serf cleans the Compression Vault. 01239_ Connecting with Door Terminal... >>Open(Door) Sealed Heavy Doors opened. 01251_ Dropped Terrain Scan Processor. 01252_ Dropped Transport Network Coupler. 01254_ Acquired Drone Bay. Map ----- +----------------------------------------------------+ | | | | | | | | | | | | | | | | | | | ?????????????????????????????????????????????????? | | ?????????????????????????????????????????????????? | | ?????????????????????????????????????????????????? | | ?????????????????????????????????????????????????? | | ?????????????????????????????????????????????????? | | ?????????????????????????????????????????????????? | | ?????????????????????????????????????????????????? | | ?????????????????????????????????????????????????? | | ?????????????????????????????????????????????????? | | ?????????????????????????????????????????????????? | | ??????????????????????????????????????????????#??? | | ????????????????????????????????????????????" ??? | | ???????????????????????????????????????????"" ???? | | ??????????????????????????????????????????"""????? | | ???????????????????????#####?????????????? ?????? | | ???????????????????????# !#?????????????#/##????? | | ???????????????????????# @!#????????????? #????? | | ???????????????????????#!!!#####???###### #????? | | ???????????????????????#! !## ????? #????? | | ???????????????????????##Y### #??????# #????? | | ???????????????????????#T # #??????# +????? | | ???????????????????????## + #??????# #????? | | ????????????????????????##### ########+## #????? | | ????????????????????????????# ## # ###### | | ????????????????????????????# ## """ # # | | ????????????????????????????# ## "?"""" # # | | ???????????a????????????????# ## "????" # # """ | | ????????????????????????????# + "????" + + """ | | ????????????????????????????# ## """"?" # # """ | | ????????????????????????????# ## """ # # | | ????????????????????????????# ## # + | | ????????????????????????????# ## # # | | ????????????????????????????#/########### ####T# | | ????????????????????????????# ?????????# #??### | | ????????????????????????????# "?????????# #????? | | ????????????????????????????#a"?????????# ###### | | ????????????????????????????+ "?????????# | | ????????????????????????????# ?????????# | | ????????????????????????????? ?????????# | | ????????????????????????????? ?????????# ###### | | ????????????????????????????? ?????????# # | +----------------------------------------------------+ Best States ------------- Heat Dissipation 28 Energy Generation 14 Energy Capacity 280 Matter Stores 300 Matter Capacity 300 Sight Range 16 Terrain Scan Density 85 Resistance: KI 20 Resistance: TH 20 Resistance: EX 20 Resistance: EM 20 Resistance: I 20 Resistance: S 20 Resistance: P 20 Evasion (%) 63 Offensive Hacking 10 Item Schematics ----------------- Transport Network Coupler | -9/Materials | Scanalyzed Robot Schematics ------------------ None Fabricated ------------ Nothing Repaired ---------- Flight Unit | 55% | -9/Storage Studied --------- Flight Unit | -9/Materials | Hacked Alien Tech Used ----------------- None Achievements -------------- None Challenges ------------ None Game ------ Seed FissionRefineryMonowheel Manual? 0 Play Time 00:31:21 Cumulative 7.6 hours Start 2025.11.23 @ 18:17:27 End 2025.11.23 @ 23:47:55 Sessions 3 Manual Loads 0 Difficulty Adventurer Special Mode None Game No. 11 Rogue 0 Adventurer 11 Explorer 0 Win Type - Total 0 Types 0/0/0/0/0/0/0/0/0/0 Lore% 7 Gallery% 9 Achievement% 10 Wizard Run 0 Options --------- Layout 2 ASCII 1 Keyboard 1 Movement Vi Keybinds 0 Fullscreen 2 Font 24/Terminus Map View 50x44 Zoom Use 0% Tactical HUD 1 Map Filters NONE Filters NONE Steam 1 RUN: 83f98335-2c3c-4e1d-8b9d-c668ca4a577e